fUSD/lending_fUSD_20260611
["ID","MTS","AMOUNT","RATE_DAILY","PERIOD"]
[424802482,1781173840000,-150.0,0.00012304,2]
[424802486,1781173840000,-150.0,0.00012304,2]
[424802479,1781173840000,-150.0,0.00012304,2]
[424802487,1781173840000,-299.60307495,0.00012318,2]
[424802478,1781173840000,-150.0,0.00012304,2]
[424802476,1781173840000,-150.0,0.00012304,2]
[424802477,1781173840000,-150.0,0.00012304,2]
[424802474,1781173840000,-1909.16,0.00012087,2]
[424802480,1781173840000,-150.0,0.00012304,2]
[424802484,1781173840000,-150.0,0.00012304,2]
[424802493,1781173840000,-150.0,0.00012335,2]
[424802485,1781173840000,-299.60307495,0.00012304,2]
[424802488,1781173840000,-150.0,0.00012328,2]
[424802490,1781173840000,-500.0,0.00012329,2]
[424802489,1781173840000,-172.21,0.00012329,2]
[424802494,1781173840000,-150.0,0.00012337,2]
[424802491,1781173840000,-299.60307495,0.00012332,2]
[424802496,1781173840000,-150.0,0.00012351,2]
[424802498,1781173840000,-150.0,0.00012361,2]
[424802495,1781173840000,-299.60307495,0.00012346,2]
[424802497,1781173840000,-299.60307495,0.00012359,2]
[424802492,1781173840000,-150.0,0.00012333,2]
[424802468,1781173840000,-550.23,0.00012087,2]
[424802483,1781173840000,-203.85144979,0.00012304,2]
[424802470,1781173840000,-7665.35,0.00012087,2]
[424802458,1781173840000,-175.0,0.00011781,2]
[424802469,1781173840000,-4999.99,0.00012087,2]
[424802500,1781173840000,-150.0,0.00012371,2]
[424802441,1781173840000,-15886.23871763,0.00011368,2]
[424802449,1781173840000,-150.0,0.000115,2]
[424802444,1781173840000,-150.0,0.000115,2]
[424802442,1781173840000,-166.66,0.00011397,2]
[424802445,1781173840000,-150.0,0.000115,2]
[424802451,1781173840000,-150.0,0.000115,2]
[424802446,1781173840000,-150.0,0.000115,2]
[424802443,1781173840000,-150.0,0.000115,2]
[424802453,1781173840000,-166.66,0.00011507,2]
[424802455,1781173840000,-162.25,0.00011606,2]
[424802456,1781173840000,-736.0,0.00011632,2]
[424802457,1781173840000,-500.0,0.00011639,2]
[424802464,1781173840000,-48317.9,0.00012055,2]
[424802460,1781173840000,-500.0,0.00011913,2]
[424802461,1781173840000,-162.25,0.00011945,2]
[424802463,1781173840000,-15886.23871763,0.00012039,2]
[424802462,1781173840000,-150.0,0.00012,2]
[424802459,1781173840000,-162.2,0.0001182,2]
[424802465,1781173840000,-4169.41,0.00012087,2]
[424802466,1781173840000,-299.99,0.00012087,2]
[424802467,1781173840000,-999.99,0.00012087,2]
[424802475,1781173840000,-500.0,0.00012187,2]
[424802472,1781173840000,-9999.99,0.00012087,2]
[424802473,1781173840000,-9999.99,0.00012087,2]
[424802471,1781173840000,-150.99,0.00012087,2]
[424802510,1781173840000,-150.0,0.00012418,2]
[424802552,1781173840000,-299.60307495,0.0001258,2]
[424802508,1781173840000,-150.0,0.00012404,2]
[424802525,1781173840000,-150.0,0.00012469,2]
[424802529,1781173840000,-299.60307495,0.00012484,2]
[424802532,1781173840000,-299.60307495,0.00012497,2]
[424802535,1781173840000,-150.0,0.00012504,2]
[424802538,1781173840000,-150.0,0.00012522,2]
[424802536,1781173840000,-299.60307495,0.00012511,2]
[424802540,1781173840000,-150.0,0.00012532,2]
[424802539,1781173840000,-299.60307495,0.00012525,2]
[424802537,1781173840000,-150.0,0.00012516,2]
[424802545,1781173840000,-150.0,0.00012553,2]
[424802543,1781173840000,-150.0,0.0001254,2]
[424802542,1781173840000,-299.60307495,0.00012539,2]
[424802541,1781173840000,-150.0,0.00012538,2]
[424802547,1781173840000,-150.0,0.0001256,2]
[424802548,1781173840000,-150.0,0.00012563,2]
[424802546,1781173840000,-299.60307495,0.00012553,2]
[424802549,1781173840000,-299.60307495,0.00012566,2]
[424802551,1781173840000,-150.0,0.00012578,2]
[424802550,1781173840000,-150.0,0.00012571,2]
[424802556,1781173840000,-299.60307495,0.00012594,2]
[424802553,1781173840000,-150.0,0.00012584,2]
[424802555,1781173840000,-150.0,0.00012589,2]
[424802554,1781173840000,-150.0,0.00012587,2]
[424802557,1781173840000,-150.0,0.00012604,2]
[424802509,1781173840000,-299.60307495,0.00012415,2]
[424802530,1781173840000,-150.0,0.00012491,2]
[424802523,1781173840000,-150.0,0.00012459,2]
[424802544,1781173840000,-150.0,0.00012553,2]
[424802531,1781173840000,-150.0,0.00012493,2]
[424802501,1781173840000,-299.60307495,0.00012373,2]
[424802534,1781173840000,-150.0,0.00012503,2]
[424802505,1781173840000,-150.0,0.00012397,2]
[424802502,1781173840000,-150.0,0.00012375,2]
[424802503,1781173840000,-299.60307495,0.00012387,2]
[424802499,1781173840000,-150.0,0.00012366,2]
[424802504,1781173840000,-150.0,0.0001239,2]
[424802507,1781173840000,-299.60307495,0.00012401,2]
[424802516,1781173840000,-299.60307495,0.00012442,2]
[424802517,1781173840000,-162.2,0.00012442,2]
[424802522,1781173840000,-299.60307495,0.00012456,2]
[424802514,1781173840000,-299.60307495,0.00012428,2]
[424802515,1781173840000,-150.0,0.00012437,2]
[424802506,1781173840000,-150.0,0.00012398,2]
[424802533,1781173840000,-150.0,0.00012499,2]
[424802528,1781173840000,-150.0,0.00012475,2]
[424802512,1781173840000,-150.0,0.00012428,2]
[424802526,1781173840000,-299.60307495,0.0001247,2]
[424802527,1781173840000,-150.0,0.00012471,2]
[424802524,1781173840000,-500.0,0.00012461,2]
[424802520,1781173840000,-150.0,0.00012446,2]
[424802521,1781173840000,-150.0,0.00012447,2]
[424802511,1781173840000,-150.0,0.00012422,2]
[424802518,1781173840000,-2000.0,0.00012442,2]
[424802513,1781173840000,-150.0,0.00012428,2]
[424802519,1781173840000,-1600.0,0.00012442,2]
[424802610,1781173841000,-1252.0,0.00012794,2]
[424802606,1781173841000,-299.60307495,0.00012774,2]
[424802603,1781173841000,-150.0,0.0001276,2]
[424802602,1781173841000,-299.60307495,0.0001276,2]
[424802601,1781173841000,-150.0,0.0001276,2]
[424802596,1781173841000,-500.0,0.00012735,2]
[424802600,1781173841000,-150.0,0.00012752,2]
[424802595,1781173841000,-299.60307495,0.00012732,2]
[424802599,1781173841000,-299.60307495,0.00012746,2]
[424802597,1781173841000,-150.0,0.00012738,2]
[424802611,1781173841000,-150.0,0.00012799,2]
[424802605,1781173841000,-150.0,0.00012771,2]
[424802604,1781173841000,-150.0,0.0001277,2]
[424802617,1781173841000,-150.0,0.00012817,2]
[424802608,1781173841000,-299.60307495,0.00012787,2]
[424802609,1781173841000,-150.0,0.00012788,2]
[424802612,1781173841000,-150.0,0.00012801,2]
[424802616,1781173841000,-299.60307495,0.00012815,2]
[424802614,1781173841000,-299.60307495,0.00012801,2]
[424802615,1781173841000,-150.0,0.00012804,2]
[424802618,1781173841000,-150.0,0.00012823,2]
[424802619,1781173841000,-299.60307495,0.00012829,2]
[424802613,1781173841000,-150.0,0.00012801,2]
[424802620,1781173841000,-150.0,0.00012832,2]
[424802622,1781173841000,-299.60307495,0.00012843,2]
[424802594,1781173841000,-150.0,0.00012731,2]
[424802607,1781173841000,-150.0,0.00012776,2]
[424802598,1781173841000,-150.0,0.00012739,2]
[424802565,1781173841000,-150.0,0.00012634,2]
[424802592,1781173841000,-299.60307495,0.00012718,2]
[424802621,1781173841000,-150.0,0.00012838,2]
[424802560,1781173841000,-150.0,0.00012615,2]
[424802563,1781173841000,-299.60307495,0.00012622,2]
[424802567,1781173841000,-299.60307495,0.00012636,2]
[424802569,1781173841000,-150.0,0.00012638,2]
[424802558,1781173841000,-299.60307495,0.00012608,2]
[424802559,1781173841000,-150.0,0.00012611,2]
[424802561,1781173841000,-150.0,0.00012617,2]
[424802571,1781173841000,-150.0,0.00012646,2]
[424802573,1781173841000,-150.0,0.00012646,2]
[424802575,1781173841000,-299.60307495,0.00012649,2]
[424802585,1781173841000,-150.0,0.00012695,2]
[424802576,1781173841000,-150.0,0.00012658,2]
[424802586,1781173841000,-150.0,0.00012703,2]
[424802577,1781173841000,-299.60307495,0.00012663,2]
[424802587,1781173841000,-150.0,0.00012704,2]
[424802579,1781173841000,-150.0,0.00012674,2]
[424802581,1781173841000,-150.0,0.00012677,2]
[424802580,1781173841000,-150.0,0.00012677,2]
[424802578,1781173841000,-150.0,0.00012671,2]
[424802582,1781173841000,-299.60307495,0.00012677,2]
[424802583,1781173841000,-150.0,0.00012681,2]
[424802584,1781173841000,-299.60307495,0.00012691,2]
[424802588,1781173841000,-299.60307495,0.00012705,2]
[424802590,1781173841000,-150.0,0.00012708,2]
[424802591,1781173841000,-15886.23871763,0.00012709,2]
[424802589,1781173841000,-150.0,0.00012705,2]
[424802593,1781173841000,-150.0,0.00012728,2]
[424802624,1781173841000,-150.0,0.00012846,2]
[424802626,1781173841000,-299.60307495,0.00012856,2]
[424802623,1781173841000,-150.0,0.00012845,2]
[424802654,1781173841000,-150.0,0.00012971,2]
[424802653,1781173841000,-299.60307495,0.00012967,2]
[424802657,1781173841000,-150.0,0.00012988,2]
[424802655,1781173841000,-299.60307495,0.00012981,2]
[424802661,1781173841000,-150.0,0.00013,2]
[424802664,1781173841000,-500.0,0.00013008,2]
[424802665,1781173841000,-150.0,0.00013011,2]
[424802663,1781173841000,-299.60307495,0.00013008,2]
[424802666,1781173841000,-150.0,0.00013016,2]
[424802662,1781173841000,-150.0,0.00013004,2]
[424802672,1781173841000,-150.0,0.00013045,2]
[424802673,1781173841000,-150.0,0.0001305,2]
[424802667,1781173841000,-150.0,0.00013019,2]
[424802669,1781173841000,-150.0,0.00013035,2]
[424802668,1781173841000,-299.60307495,0.00013022,2]
[424802671,1781173841000,-150.0,0.00013038,2]
[424802670,1781173841000,-299.60307495,0.00013036,2]
[424802674,1781173841000,-150.0,0.0001305,2]
[424802678,1781173841000,-162.2,0.00013065,2]
[424802677,1781173841000,-299.60307495,0.00013064,2]
[424802676,1781173841000,-150.0,0.00013058,2]
[424802675,1781173841000,-299.60307495,0.0001305,2]
[424802682,1781173841000,-150.0,0.00013081,2]
[424802681,1781173841000,-299.60307495,0.00013077,2]
[424802679,1781173841000,-150.0,0.00013071,2]
[424802683,1781173841000,-150.0,0.00013082,2]
[424802634,1781173841000,-150.0,0.0001289,2]
[424802658,1781173841000,-150.0,0.00012988,2]
[424802656,1781173841000,-150.0,0.00012988,2]
[424802680,1781173841000,-150.0,0.00013073,2]
[424802648,1781173841000,-150.0,0.00012941,2]
[424802659,1781173841000,-150.0,0.00012988,2]
[424802684,1781173841000,-150.0,0.00013085,2]
[424802627,1781173841000,-150.0,0.00012863,2]
[424802628,1781173841000,-150.0,0.0001287,2]
[424802629,1781173841000,-299.60307495,0.0001287,2]
[424802631,1781173841000,-150.0,0.00012874,2]
[424802632,1781173841000,-276.0,0.00012877,2]
[424802625,1781173841000,-150.0,0.00012851,2]
[424802633,1781173841000,-299.60307495,0.00012884,2]
[424802635,1781173841000,-150.0,0.00012893,2]
[424802638,1781173841000,-150.0,0.00012902,2]
[424802640,1781173841000,-299.60307495,0.00012912,2]
[424802639,1781173841000,-150.0,0.00012904,2]
[424802630,1781173841000,-150.0,0.00012871,2]
[424802645,1781173841000,-150.0,0.00012931,2]
[424802652,1781173841000,-150.0,0.00012964,2]
[424802637,1781173841000,-299.60307495,0.00012898,2]
[424802650,1781173841000,-150.0,0.00012957,2]
[424802651,1781173841000,-150.0,0.00012959,2]
[424802660,1781173841000,-299.60307495,0.00012995,2]
[424802641,1781173841000,-150.0,0.00012917,2]
[424802649,1781173841000,-299.60307495,0.00012953,2]
[424802644,1781173841000,-299.60307495,0.00012926,2]
[424802636,1781173841000,-150.0,0.00012894,2]
[424802646,1781173841000,-150.0,0.00012938,2]
[424802642,1781173841000,-150.0,0.00012926,2]
[424802647,1781173841000,-299.60307495,0.00012939,2]
[424802643,1781173841000,-150.0,0.00012926,2]
[424802734,1781173842000,-150.0,0.00013298,2]
[424802725,1781173842000,-150.0,0.00013271,2]
[424802726,1781173842000,-299.60307495,0.00013271,2]
[424802724,1781173842000,-150.0,0.00013267,2]
[424802721,1781173842000,-150.0,0.00013244,2]
[424802718,1781173842000,-150.0,0.00013236,2]
[424802722,1781173842000,-150.0,0.00013247,2]
[424802717,1781173842000,-299.60307495,0.00013229,2]
[424802720,1781173842000,-299.60307495,0.00013243,2]
[424802719,1781173842000,-150.0,0.00013238,2]
[424802714,1781173842000,-299.60307495,0.00013216,2]
[424802733,1781173842000,-150.0,0.00013298,2]
[424802744,1781173842000,-299.60307495,0.0001334,2]
[424802727,1781173842000,-150.0,0.00013271,2]
[424802723,1781173842000,-299.60307495,0.00013257,2]
[424802732,1781173842000,-150.0,0.00013294,2]
[424802729,1781173842000,-150.0,0.00013281,2]
[424802730,1781173842000,-500.0,0.00013282,2]
[424802731,1781173842000,-299.60307495,0.00013285,2]
[424802738,1781173842000,-299.60307495,0.00013312,2]
[424802736,1781173842000,-150.0,0.00013301,2]
[424802739,1781173842000,-150.0,0.00013318,2]
[424802735,1781173842000,-299.60307495,0.00013298,2]
[424802737,1781173842000,-150.0,0.00013304,2]
[424802716,1781173842000,-150.0,0.00013223,2]
[424802728,1781173842000,-150.0,0.00013272,2]
[424802711,1781173842000,-150.0,0.00013204,2]
[424802697,1781173842000,-150.0,0.00013143,2]
[424802713,1781173842000,-150.0,0.00013216,2]
[424802740,1781173842000,-299.60307495,0.00013326,2]
[424802685,1781173842000,-299.60307495,0.00013091,2]
[424802688,1781173842000,-299.60307495,0.00013105,2]
[424802686,1781173842000,-150.0,0.00013102,2]
[424802691,1781173842000,-299.60307495,0.00013119,2]
[424802689,1781173842000,-150.0,0.00013106,2]
[424802692,1781173842000,-150.0,0.00013124,2]
[424802687,1781173842000,-150.0,0.00013104,2]
[424802695,1781173842000,-299.60307495,0.00013133,2]
[424802696,1781173842000,-150.0,0.00013138,2]
[424802694,1781173842000,-150.0,0.0001313,2]
[424802693,1781173842000,-150.0,0.00013129,2]
[424802715,1781173842000,-150.0,0.00013216,2]
[424802698,1781173842000,-299.60307495,0.00013146,2]
[424802708,1781173842000,-299.60307495,0.00013188,2]
[424802699,1781173842000,-150.0,0.00013153,2]
[424802700,1781173842000,-150.0,0.00013159,2]
[424802701,1781173842000,-299.60307495,0.0001316,2]
[424802704,1781173842000,-150.0,0.00013174,2]
[424802707,1781173842000,-150.0,0.00013187,2]
[424802702,1781173842000,-150.0,0.00013171,2]
[424802703,1781173842000,-150.0,0.00013174,2]
[424802705,1781173842000,-299.60307495,0.00013174,2]
[424802706,1781173842000,-150.0,0.00013176,2]
[424802710,1781173842000,-299.60307495,0.00013202,2]
[424802712,1781173842000,-150.0,0.00013205,2]
[424802709,1781173842000,-150.0,0.000132,2]
[424802745,1781173842000,-150.0,0.00013341,2]
[424802690,1781173842000,-150.0,0.00013112,2]
[424802743,1781173842000,-150.0,0.00013338,2]
[424802776,1781173842000,-150.0,0.00013471,2]
[424802780,1781173842000,-299.60307495,0.00013478,2]
[424802779,1781173842000,-150.0,0.00013476,2]
[424802783,1781173842000,-299.60307495,0.00013492,2]
[424802785,1781173842000,-150.0,0.000135,2]
[424802789,1781173842000,-150.0,0.00013506,2]
[424802788,1781173842000,-299.60307495,0.00013506,2]
[424802786,1781173842000,-150.0,0.00013505,2]
[424802790,1781173842000,-150.0,0.00013516,2]
[424802794,1781173842000,-299.60307495,0.00013533,2]
[424802791,1781173842000,-299.60307495,0.00013519,2]
[424802793,1781173842000,-150.0,0.0001353,2]
[424802781,1781173842000,-150.0,0.00013483,2]
[424802792,1781173842000,-150.0,0.00013529,2]
[424802796,1781173842000,-150.0,0.00013547,2]
[424802797,1781173842000,-150.0,0.00013547,2]
[424802798,1781173842000,-299.60307495,0.00013547,2]
[424802807,1781173842000,-150.0,0.00013586,2]
[424802800,1781173842000,-500.0,0.00013556,2]
[424802799,1781173842000,-150.0,0.00013553,2]
[424802801,1781173842000,-150.0,0.00013557,2]
[424802804,1781173842000,-299.60307495,0.00013575,2]
[424802806,1781173842000,-150.0,0.00013578,2]
[424802805,1781173842000,-150.0,0.00013577,2]
[424802803,1781173842000,-150.0,0.00013571,2]
[424802742,1781173842000,-150.0,0.00013329,2]
[424802795,1781173842000,-150.0,0.00013538,2]
[424802778,1781173842000,-150.0,0.00013472,2]
[424802802,1781173842000,-299.60307495,0.00013561,2]
[424802775,1781173842000,-299.60307495,0.00013464,2]
[424802741,1781173842000,-150.0,0.00013329,2]
[424802747,1781173842000,-150.0,0.00013358,2]
[424802749,1781173842000,-150.0,0.00013365,2]
[424802750,1781173842000,-299.60307495,0.00013367,2]
[424802748,1781173842000,-150.0,0.00013361,2]
[424802746,1781173842000,-299.60307495,0.00013354,2]
[424802756,1781173842000,-299.60307495,0.00013395,2]
[424802755,1781173842000,-150.0,0.00013392,2]
[424802774,1781173842000,-150.0,0.00013459,2]
[424802754,1781173842000,-150.0,0.00013388,2]
[424802753,1781173842000,-150.0,0.00013386,2]
[424802752,1781173842000,-299.60307495,0.00013381,2]
[424802757,1781173842000,-150.0,0.00013398,2]
[424802751,1781173842000,-150.0,0.00013371,2]
[424802761,1781173842000,-150.0,0.00013412,2]
[424802782,1781173842000,-150.0,0.00013485,2]
[424802762,1781173842000,-150.0,0.00013415,2]
[424802771,1781173842000,-150.0,0.00013443,2]
[424802772,1781173842000,-299.60307495,0.0001345,2]
[424802770,1781173842000,-150.0,0.00013438,2]
[424802768,1781173842000,-299.60307495,0.00013436,2]
[424802773,1781173842000,-150.0,0.00013454,2]
[424802766,1781173842000,-150.0,0.00013436,2]
[424802758,1781173842000,-150.0,0.00013404,2]
[424802763,1781173842000,-150.0,0.00013423,2]
[424802760,1781173842000,-299.60307495,0.00013409,2]
[424802765,1781173842000,-299.60307495,0.00013423,2]
[424802764,1781173842000,-150.0,0.00013423,2]
[424802846,1781173843000,-539.71180244,0.00013698,2]
[424802844,1781173843000,-500.0,0.00013698,2]
[424802845,1781173843000,-500.0,0.00013698,2]
[424802838,1781173843000,-500.0,0.00013698,2]
[424802840,1781173843000,-503.31933434,0.00013698,2]
[424802842,1781173843000,-500.0,0.00013698,2]
[424802834,1781173843000,-2000.0,0.00013687,2]
[424802833,1781173843000,-162.2,0.00013687,2]
[424802837,1781173843000,-574.57860626,0.00013698,2]
[424802839,1781173843000,-500.0,0.00013698,2]
[424802847,1781173843000,-500.0,0.00013698,2]
[424802859,1781173843000,-500.0,0.00013698,2]
[424802848,1781173843000,-500.0,0.00013698,2]
[424802851,1781173843000,-500.0,0.00013698,2]
[424802849,1781173843000,-500.0,0.00013698,2]
[424802852,1781173843000,-500.0,0.00013698,2]
[424802850,1781173843000,-500.0,0.00013698,2]
[424802854,1781173843000,-500.0,0.00013698,2]
[424802857,1781173843000,-500.0,0.00013698,2]
[424802864,1781173843000,-500.0,0.00013698,2]
[424802855,1781173843000,-316.14889603,0.00013698,2]
[424802856,1781173843000,-500.0,0.00013698,2]
[424802841,1781173843000,-500.0,0.00013698,2]
[424802853,1781173843000,-500.0,0.00013698,2]
[424802843,1781173843000,-362.50237529,0.00013698,2]
[424802832,1781173843000,-289.90717118,0.00013671,2]
[424802836,1781173843000,-199.5,0.00013691,2]
[424802860,1781173843000,-500.0,0.00013698,2]
[424802808,1781173843000,-299.60307495,0.00013588,2]
[424802811,1781173843000,-150.0,0.00013605,2]
[424802809,1781173843000,-150.0,0.00013601,2]
[424802814,1781173843000,-299.60307495,0.00013616,2]
[424802817,1781173843000,-150.0,0.00013638,2]
[424802816,1781173843000,-299.60307495,0.0001363,2]
[424802812,1781173843000,-150.0,0.00013609,2]
[424802810,1781173843000,-299.60307495,0.00013602,2]
[424802813,1781173843000,-150.0,0.00013614,2]
[424802819,1781173843000,-150.0,0.00013643,2]
[424802815,1781173843000,-150.0,0.00013624,2]
[424802818,1781173843000,-150.0,0.0001364,2]
[424802821,1781173843000,-150.0,0.00013648,2]
[424802820,1781173843000,-299.60307495,0.00013644,2]
[424802825,1781173843000,-279.86118902,0.00013671,2]
[424802831,1781173843000,-299.60307495,0.00013671,2]
[424802824,1781173843000,-257.36274763,0.00013671,2]
[424802829,1781173843000,-150.75812701,0.00013671,2]
[424802823,1781173843000,-225.43309031,0.00013671,2]
[424802826,1781173843000,-248.12091067,0.00013671,2]
[424802827,1781173843000,-208.11144819,0.00013671,2]
[424802822,1781173843000,-299.60307495,0.00013657,2]
[424802828,1781173843000,-285.87761885,0.00013671,2]
[424802830,1781173843000,-210.0975545,0.00013671,2]
[424802835,1781173843000,-1600.0,0.00013687,2]
[424802862,1781173843000,-504.25668169,0.00013698,2]
[424802873,1781173843000,-500.0,0.00013698,2]
[424802858,1781173843000,-500.0,0.00013698,2]
[424802896,1781173843000,-2726.92,0.00013698,2]
[424802916,1781173843000,-993.33,0.00013698,2]
[424802902,1781173843000,-2726.92,0.00013698,2]
[424802900,1781173843000,-2726.92,0.00013698,2]
[424802898,1781173843000,-2726.92,0.00013698,2]
[424802919,1781173843000,-2726.92,0.00013698,2]
[424802921,1781173843000,-993.33,0.00013698,2]
[424802923,1781173843000,-2726.92,0.00013698,2]
[424802925,1781173843000,-993.33,0.00013698,2]
[424802934,1781173843000,-993.33,0.00013698,2]
[424802936,1781173843000,-2726.92,0.00013698,2]
[424802912,1781173843000,-2726.92,0.00013698,2]
[424802927,1781173843000,-2726.92,0.00013698,2]
[424802938,1781173843000,-993.33,0.00013698,2]
[424802929,1781173843000,-993.33,0.00013698,2]
[424802942,1781173843000,-993.33,0.00013698,2]
[424802940,1781173843000,-2726.92,0.00013698,2]
[424802946,1781173843000,-993.33,0.00013698,2]
[424802861,1781173843000,-185.2409854,0.00013698,2]
[424802950,1781173843000,-993.33,0.00013698,2]
[424802953,1781173843000,-2726.92,0.00013698,2]
[424802956,1781173843000,-993.33,0.00013698,2]
[424802958,1781173843000,-2726.92,0.00013698,2]
[424802944,1781173843000,-2726.92,0.00013698,2]
[424802932,1781173843000,-2726.92,0.00013698,2]
[424802914,1781173843000,-2726.92,0.00013698,2]
[424802948,1781173843000,-2726.92,0.00013698,2]
[424802908,1781173843000,-2726.92,0.00013698,2]
[424802910,1781173843000,-2726.92,0.00013698,2]
[424802863,1781173843000,-500.0,0.00013698,2]
[424802866,1781173843000,-500.0,0.00013698,2]
[424802867,1781173843000,-500.0,0.00013698,2]
[424802865,1781173843000,-500.0,0.00013698,2]
[424802869,1781173843000,-500.0,0.00013698,2]
[424802870,1781173843000,-632.22545111,0.00013698,2]
[424802872,1781173843000,-500.0,0.00013698,2]
[424802875,1781173843000,-500.0,0.00013698,2]
[424802871,1781173843000,-500.0,0.00013698,2]
[424802874,1781173843000,-500.0,0.00013698,2]
[424802876,1781173843000,-500.0,0.00013698,2]
[424802868,1781173843000,-500.0,0.00013698,2]
[424802881,1781173843000,-500.0,0.00013698,2]
[424802880,1781173843000,-500.0,0.00013698,2]
[424802904,1781173843000,-2726.92,0.00013698,2]
[424802906,1781173843000,-2726.92,0.00013698,2]
[424802889,1781173843000,-351.81862883,0.00013698,2]
[424802884,1781173843000,-500.0,0.00013698,2]
[424802893,1781173843000,-2726.92,0.00013698,2]
[424802887,1781173843000,-500.0,0.00013698,2]
[424802882,1781173843000,-500.0,0.00013698,2]
[424802879,1781173843000,-500.0,0.00013698,2]
[424802878,1781173843000,-500.0,0.00013698,2]
[424802891,1781173843000,-2726.92,0.00013698,2]
[424802877,1781173843000,-500.0,0.00013698,2]
[424803006,1781173844000,-500.0,0.00013698,2]
[424803010,1781173844000,-500.0,0.00013698,2]
[424803015,1781173844000,-500.0,0.00013698,2]
[424803008,1781173844000,-500.0,0.00013698,2]
[424803017,1781173844000,-500.0,0.00013698,2]
[424803019,1781173844000,-500.0,0.00013698,2]
[424803023,1781173844000,-500.0,0.00013698,2]
[424803025,1781173844000,-500.0,0.00013698,2]
[424803021,1781173844000,-500.0,0.00013698,2]
[424803030,1781173844000,-282.94171336,0.00013698,2]
[424803036,1781173844000,-660.37,0.00013698,2]
[424803034,1781173844000,-660.37,0.00013698,2]
[424803039,1781173844000,-660.37,0.00013698,2]
[424803032,1781173844000,-660.37,0.00013698,2]
[424803043,1781173844000,-660.37,0.00013698,2]
[424803041,1781173844000,-660.37,0.00013698,2]
[424803045,1781173844000,-660.37,0.00013698,2]
[424803013,1781173844000,-500.0,0.00013698,2]
[424803028,1781173844000,-492.8427843,0.00013698,2]
[424802997,1781173844000,-993.54036356,0.00013698,2]
[424802976,1781173844000,-993.33,0.00013698,2]
[424803002,1781173844000,-500.0,0.00013698,2]
[424802963,1781173844000,-2726.92,0.00013698,2]
[424802965,1781173844000,-993.33,0.00013698,2]
[424803051,1781173844000,-660.37,0.00013698,2]
[424802960,1781173844000,-993.33,0.00013698,2]
[424802971,1781173844000,-993.33,0.00013698,2]
[424802969,1781173844000,-993.33,0.00013698,2]
[424802967,1781173844000,-2727.10955314,0.00013698,2]
[424802973,1781173844000,-993.33,0.00013698,2]
[424803004,1781173844000,-500.0,0.00013698,2]
[424802978,1781173844000,-500.0,0.00013698,2]
[424802982,1781173844000,-292.30346816,0.00013698,2]
[424802988,1781173844000,-993.33,0.00013698,2]
[424802990,1781173844000,-993.33,0.00013698,2]
[424802986,1781173844000,-993.33,0.00013698,2]
[424802984,1781173844000,-993.33,0.00013698,2]
[424802995,1781173844000,-993.33,0.00013698,2]
[424802993,1781173844000,-993.33,0.00013698,2]
[424802999,1781173844000,-500.0,0.00013698,2]
[424802980,1781173844000,-993.33,0.00013698,2]
[424803049,1781173844000,-660.37,0.00013698,2]